fUSD/lending_fUSD_20250226
["ID","MTS","AMOUNT","RATE_DAILY","PERIOD"]
[354561258,1740575441592,-1242.91,0.00040821,14]
[354561259,1740575441601,-2448.7,0.00040821,14]
[354561261,1740575441611,-751.34,0.00040821,14]
[354561263,1740575441623,-500.0,0.00040821,14]
[354561265,1740575441632,-2720.53,0.00040821,14]
[354561267,1740575441642,-716.95,0.00040821,14]
[354561269,1740575441651,-897.6,0.00040821,14]
[354561271,1740575441661,-865.83,0.00040821,14]
[354561273,1740575441670,-555.27,0.00040821,14]
[354561275,1740575441679,-1380.31,0.00040821,14]
[354561277,1740575441689,-769.26,0.00040821,14]
[354561279,1740575441698,-5632.78,0.00040821,14]
[354561281,1740575441708,-500.0,0.00040821,14]
[354561283,1740575441721,-1003.99,0.00040821,14]
[354561285,1740575441730,-2223.55,0.00040821,14]
[354561287,1740575441740,-500.0,0.00040821,14]
[354561289,1740575441749,-500.0,0.00040821,14]
[354561291,1740575441759,-1633.45,0.00040821,14]
[354561294,1740575441768,-5865.29,0.00040821,14]
[354561295,1740575441778,-506.08,0.00040821,14]
[354561297,1740575441787,-500.0,0.00040821,14]
[354561299,1740575441797,-1724.37,0.00040821,14]
[354561301,1740575441807,-754.51,0.00040821,14]
[354561303,1740575441816,-1480.7,0.00040821,14]
[354561305,1740575441826,-818.41,0.00040821,14]
[354561307,1740575441835,-2469.31,0.00040821,14]
[354561309,1740575441845,-500.0,0.00040821,14]
[354561311,1740575441854,-793.87,0.00040821,14]
[354561314,1740575441866,-2851.43,0.00040821,14]
[354561316,1740575441877,-666.5,0.00040821,14]
[354561318,1740575441886,-661.76,0.00040821,14]
[354561320,1740575441896,-500.0,0.00040821,14]
[354561322,1740575441905,-674.56,0.00040821,14]
[354561324,1740575441914,-500.0,0.00040821,14]
[354561326,1740575441924,-819.63,0.00040821,14]
[354561327,1740575441935,-954.92,0.00040821,14]
[354561328,1740575441946,-2642.62,0.00040821,14]
[354561329,1740575441955,-500.0,0.00040821,14]
[354561330,1740575441964,-1530.02,0.00040821,14]
[354561331,1740575441974,-3744.89,0.00040821,14]
[354561332,1740575441984,-1429.61,0.00040821,14]
[354561333,1740575441995,-500.0,0.00040821,14]
[354561334,1740575442005,-825.28,0.00040821,14]
[354561335,1740575442014,-500.0,0.00040821,14]
[354561336,1740575442025,-500.0,0.00040821,14]
[354561337,1740575442035,-863.05,0.00040821,14]
[354561338,1740575442045,-686.95,0.00040821,14]
[354561339,1740575442054,-1159.4,0.00040821,14]
[354561340,1740575442064,-500.0,0.00040821,14]
[354561341,1740575442073,-1570.55,0.00040821,14]
[354561342,1740575442083,-551.74,0.00040821,14]
[354561343,1740575442092,-500.0,0.00040821,14]
[354561344,1740575442102,-1570.24,0.00040821,14]
[354561345,1740575442111,-500.0,0.00040821,14]
[354561346,1740575442124,-500.0,0.00040821,14]
[354561347,1740575442134,-989.55,0.00040821,14]
[354561348,1740575442143,-500.0,0.00040821,14]
[354561349,1740575442152,-1767.47,0.00040821,14]
[354561350,1740575442162,-523.47,0.00040821,14]
[354561351,1740575442171,-719.22,0.00040821,14]
[354561352,1740575442180,-686.69,0.00040821,14]
[354561353,1740575442190,-1537.63,0.00040821,14]
[354561354,1740575442200,-495.69857793,0.00040821,14]
[354561355,1740575442210,-968.6,0.00040821,14]
[354561356,1740575442219,-1575.95,0.00040821,14]
[354561357,1740575442228,-543.4,0.00040821,14]
[354561358,1740575442238,-528.58,0.00040821,14]
[354561359,1740575442247,-2432.41,0.00040821,14]
[354561360,1740575442257,-541.83,0.00040821,14]
[354561361,1740575442267,-1795.79,0.00040821,14]
[354561362,1740575442276,-190.86672146,0.00040873,15]
[354561363,1740575442286,-155.85666796,0.00040884,7]
[354561364,1740575442295,-167.46,0.00040891,2]
[354561365,1740575442304,-1944.8674,0.00040895,2]
[354561366,1740575442314,-8817.9376,0.00040895,2]
[354561367,1740575442325,-1300.0,0.000409,14]
[354561368,1740575442334,-367.0,0.000409,30]
[354561369,1740575442344,-2371.01,0.00040916,14]
[354561370,1740575442354,-2500.96,0.00040916,14]
[354561371,1740575442365,-1814.89,0.00040916,14]
[354561372,1740575442375,-3797.99,0.00040916,14]
[354561373,1740575442385,-500.0,0.00040916,14]
[354561374,1740575442394,-3465.47,0.00040916,14]
[354561375,1740575442403,-1761.62,0.00040916,14]
[354561376,1740575442412,-3245.94,0.00040916,14]
[354561377,1740575442421,-207.56440976,0.00040916,14]
[354561378,1740575442430,-4094.25,0.00040916,14]
[354561379,1740575442439,-1938.93,0.00040916,14]
[354561380,1740575442449,-2147.12,0.00040916,14]
[354561381,1740575442459,-4231.49,0.00040916,14]
[354561382,1740575442469,-2356.62,0.00040916,14]
[354561383,1740575442479,-1296.58,0.00040916,14]
[354561384,1740575442488,-9808.9272204,0.00040917,120]
[354561385,1740575442498,-1003.87,0.00040917,120]
[354561386,1740575442508,-996.4,0.00040917,120]
[354561387,1740575442518,-150.0,0.00040932,2]
[354561388,1740575442527,-156.49,0.00040942,2]
[354561389,1740575442536,-500.0,0.00040993,31]
[354561390,1740575442546,-607.15680635,0.00040993,31]
[354561391,1740575442555,-500.0,0.00040993,31]
[354561392,1740575442564,-500.0,0.00040993,31]
[354561393,1740575442574,-3419.79,0.00040994,14]
[354561394,1740575442583,-1348.62,0.00040994,7]
[354561395,1740575442592,-1206.43,0.00040994,14]
[354561396,1740575442602,-2428.06,0.00040994,14]
[354561397,1740575442612,-775.488991,0.00040994,14]
[354561398,1740575442622,-5447.0,0.00040994,14]
[354561399,1740575442633,-1315.78,0.00040994,14]
[354561400,1740575442643,-2495.53,0.00040994,14]
[354561401,1740575442652,-1788.132357,0.00040994,14]
[354561402,1740575442661,-2727.83,0.00040994,14]
[354561403,1740575442671,-2967.69,0.00040994,2]
[354561404,1740575442681,-2286.13,0.00040994,14]
[354561405,1740575442690,-1932.4,0.00040994,14]
[354561406,1740575442699,-2018.58,0.00040994,14]
[354561407,1740575442708,-3455.44,0.00040994,14]
[354561408,1740575442718,-500.0,0.00040994,14]
[354561410,1740575442728,-14968.36,0.00040994,14]
[354561412,1740575442738,-3120.78,0.00040994,14]
[354561414,1740575442747,-7765.54,0.00040994,14]
[354561416,1740575442757,-3346.45,0.00040994,14]
[354561418,1740575442766,-3519.2,0.00040994,14]
[354561420,1740575442775,-2226.1,0.00040994,14]
[354561422,1740575442784,-162.029449,0.00040994,14]
[354561424,1740575442794,-3362.4,0.00040994,14]
[354561426,1740575442804,-2570.19,0.00040994,14]
[354561428,1740575442813,-6700.96,0.00040994,14]
[354561430,1740575442822,-3681.89,0.00040994,14]
[354561432,1740575442832,-3892.22,0.00040994,14]
[354561434,1740575442844,-5531.83,0.00040994,14]
[354561436,1740575442854,-5788.43,0.00040994,14]
[354561438,1740575442863,-742.61,0.00040994,14]
[354561440,1740575442874,-2007.52,0.00040994,14]
[354561442,1740575442884,-5220.13,0.00040994,14]
[354561444,1740575442893,-4862.89,0.00040994,14]
[354561447,1740575442903,-502.07,0.00040994,14]
[354561449,1740575442913,-2945.18,0.00040994,14]
[354561452,1740575442923,-2359.98385828,0.00040995,15]
[354561454,1740575442935,-1092.9091,0.00040995,2]
[354561458,1740575442947,-1825.8659,0.00040995,2]
[354561461,1740575442956,-609.0823,0.00040995,2]
[354561463,1740575442966,-1372.1735,0.00040995,120]
[354561466,1740575442975,-2514.2933,0.00040995,2]
[354561468,1740575442985,-1000.0,0.00040995,2]
[354561470,1740575442995,-36312.8427,0.00040995,2]
[354561472,1740575443004,-6084.2057,0.00040995,2]
[354561474,1740575443013,-1427.2874,0.00040995,2]
[354561476,1740575443024,-1096.7287,0.00040995,2]
[354561479,1740575443036,-150.0,0.00041005,2]
[354561482,1740575443046,-192.86045117,0.00041023,15]
[354561485,1740575443055,-190.86672146,0.00041025,15]
[354561488,1740575443065,-353.2763218,0.00041063,4]
[354561491,1740575443074,-150.0,0.00041067,2]
[354561493,1740575443084,-500.0,0.00041073,2]
[354561495,1740575443093,-500.0,0.00041073,5]
[354561498,1740575443102,-500.0,0.00041073,5]
[354561500,1740575443112,-150.0,0.00041074,2]
[354561502,1740575443124,-150.0,0.0004109,2]
[354561503,1740575443133,-200.0,0.00041094,7]
[354561505,1740575443143,-518.27361333,0.00041094,14]
[354561506,1740575443152,-500.0,0.00041094,14]
[354561508,1740575443161,-500.0,0.00041094,14]
[354561510,1740575443170,-500.0,0.00041094,14]
[354561512,1740575443180,-500.0,0.00041094,14]
[354561514,1740575443189,-500.0,0.00041094,14]
[354561516,1740575443198,-509.17,0.00041094,14]
[354561518,1740575443208,-848.49,0.00041094,14]
[354561520,1740575443218,-500.0,0.00041094,14]
[354561522,1740575443227,-500.0,0.00041094,14]
[354561524,1740575443237,-1025.0,0.00041094,14]
[354561526,1740575443247,-1058.32,0.00041094,14]
[354561528,1740575443256,-839.71,0.00041094,14]
[354561530,1740575443266,-500.0,0.00041094,14]
[354561532,1740575443275,-830.07,0.00041094,14]
[354561534,1740575443284,-500.0,0.00041094,14]
[354561536,1740575443294,-509.68529075,0.00041094,14]
[354561538,1740575443303,-500.0,0.00041094,14]
[354561540,1740575443312,-799.42,0.00041094,14]
[354561542,1740575443322,-2000.0,0.00041094,30]
[354561544,1740575443332,-500.0,0.00041094,14]
[354561546,1740575443342,-2060.38,0.00041094,14]
[354561548,1740575443353,-500.0,0.00041094,14]
[354561586,1740575443683,-500.0,0.00041094,14]
[354561588,1740575443694,-1007.91,0.00041094,14]
[354561590,1740575443703,-500.0,0.00041094,14]
[354561592,1740575443714,-876.82,0.00041094,14]
[354561594,1740575443723,-912.41,0.00041094,14]
[354561596,1740575443734,-548.15,0.00041094,14]
[354561598,1740575443743,-868.59,0.00041094,14]
[354561600,1740575443753,-500.0,0.00041094,14]
[354561602,1740575443762,-684.23,0.00041094,14]
[354561604,1740575443771,-785.3,0.00041094,14]
[354561606,1740575443781,-1791.66,0.00041094,14]
[354561609,1740575443791,-365.92587129,0.00041094,14]
[354561611,1740575443801,-500.0,0.00041094,14]
[354561612,1740575443812,-500.0,0.00041094,14]
[354561614,1740575443821,-500.0,0.00041094,14]
[354561617,1740575443831,-500.0,0.00041094,14]
[354561619,1740575443841,-551.18,0.00041094,14]
[354561621,1740575443850,-1462.81,0.00041094,14]
[354561623,1740575443859,-691.92,0.00041094,14]
[354561625,1740575443870,-1473.66,0.00041094,14]
[354561627,1740575443880,-500.0,0.00041094,14]
[354561629,1740575443890,-513.1337961,0.00041094,14]
[354561631,1740575443900,-805.09,0.00041094,14]
[354561633,1740575443909,-516.74054162,0.00041094,14]
[354561635,1740575443919,-500.0,0.00041094,14]
[354561637,1740575443928,-564.41,0.00041094,14]
[354561639,1740575443941,-500.0,0.00041094,14]
[354561641,1740575443952,-945.45,0.00041094,14]
[354561642,1740575443961,-500.0,0.00041094,14]
[354561644,1740575443971,-775.18,0.00041094,14]
[354561645,1740575443981,-658.16,0.00041094,14]
[354561646,1740575443991,-500.0,0.00041094,14]
[354561647,1740575444001,-500.0,0.00041094,14]
[354561648,1740575444011,-1588.91,0.00041094,14]
[354561649,1740575444021,-1264.29,0.00041094,14]
[354561650,1740575444032,-711.01,0.00041094,14]
[354561651,1740575444041,-694.67,0.00041094,14]
[354561652,1740575444051,-500.0,0.00041094,14]
[354561653,1740575444062,-500.0,0.00041094,14]
[354561654,1740575444072,-799.9,0.00041094,14]
[354561655,1740575444082,-500.0,0.00041094,14]
[354561656,1740575444091,-500.0,0.00041094,14]
[354561657,1740575444101,-556.35,0.00041094,14]
[354561658,1740575444110,-500.0,0.00041094,14]
[354561659,1740575444120,-1794.91,0.00041094,14]
[354561660,1740575444129,-1169.9,0.00041094,14]
[354561661,1740575444138,-500.0,0.00041094,14]
[354561662,1740575444148,-510.00603525,0.00041094,14]
[354561663,1740575444157,-1360.03,0.00041094,14]
[354561664,1740575444167,-1362.42,0.00041094,14]
[354561665,1740575444177,-500.0,0.00041094,14]
[354561666,1740575444186,-503.79504873,0.00041094,14]
[354561667,1740575444196,-500.0,0.00041094,14]
[354561668,1740575444205,-500.0,0.00041094,14]
[354561669,1740575444214,-949.52,0.00041094,14]
[354561670,1740575444224,-364.73730841,0.00041094,14]
[354561671,1740575444233,-500.0,0.00041094,14]
[354561672,1740575444243,-500.0,0.00041094,14]
[354561673,1740575444252,-1299.68,0.00041094,14]
[354561674,1740575444262,-500.0,0.00041094,14]
[354561675,1740575444272,-627.5,0.00041094,14]
[354561676,1740575444282,-500.0,0.00041094,14]
[354561677,1740575444291,-500.0,0.00041094,14]
[354561678,1740575444300,-1287.96,0.00041094,14]
[354561679,1740575444310,-798.2,0.00041094,14]
[354561680,1740575444319,-500.0,0.00041094,14]
[354561681,1740575444328,-552.13,0.00041094,14]
[354561682,1740575444338,-3071.6,0.00041094,14]
[354561683,1740575444347,-500.0,0.00041094,14]
[354561684,1740575444356,-500.0,0.00041094,14]
[354561685,1740575444365,-606.72,0.00041094,14]
[354561686,1740575444375,-500.0,0.00041094,14]
[354561687,1740575444385,-500.0,0.00041094,14]
[354561688,1740575444394,-2228.21,0.00041094,14]
[354561689,1740575444403,-643.40024206,0.00041094,14]
[354561690,1740575444413,-500.0,0.00041094,14]
[354561691,1740575444423,-500.0,0.00041094,14]
[354561692,1740575444432,-1777.33,0.00041094,14]
[354561693,1740575444441,-793.61,0.00041094,14]
[354561694,1740575444451,-500.0,0.00041094,14]
[354561695,1740575444462,-1023.39,0.00041094,14]
[354561696,1740575444471,-10296.21,0.00041094,14]
[354561697,1740575444481,-500.0,0.00041094,14]
[354561698,1740575444490,-777.73,0.00041094,14]
[354561699,1740575444501,-3524.06,0.00041094,14]
[354561700,1740575444511,-864.44,0.00041094,14]
[354561701,1740575444520,-965.73,0.00041094,7]
[354561702,1740575444530,-711.47,0.00041094,14]
[354561703,1740575444539,-611.75,0.00041094,14]
[354561704,1740575444550,-899.53,0.00041094,14]
[354561705,1740575444559,-500.0,0.00041094,14]
[354561706,1740575444568,-500.0,0.00041094,14]
[354561707,1740575444578,-500.0,0.00041094,14]
[354561708,1740575444587,-500.0,0.00041094,14]
[354561709,1740575444596,-500.0,0.00041094,14]
[354561710,1740575444606,-500.0,0.00041094,14]
[354561711,1740575444615,-507.40318057,0.00041094,14]
[354561712,1740575444626,-500.63858269,0.00041094,14]
[354561713,1740575444636,-3939.98,0.00041094,14]
[354561714,1740575444646,-761.03,0.00041094,14]
[354561715,1740575444655,-3008.42,0.00041094,14]
[354561716,1740575444665,-720.79,0.00041094,14]
[354561717,1740575444674,-500.0,0.00041094,14]
[354561718,1740575444684,-5721.31,0.00041094,14]
[354561719,1740575444694,-12055.1,0.00041094,14]
[354561720,1740575444705,-710.64,0.00041094,14]
[354561721,1740575444714,-500.0,0.00041094,14]
[354561722,1740575444723,-209.48061105,0.00041094,14]
[354561723,1740575444733,-500.0,0.00041094,14]
[354561724,1740575444742,-500.0,0.00041094,14]
[354561725,1740575444753,-1540.72,0.00041094,14]
[354561726,1740575444763,-500.0,0.00041094,14]
[354561727,1740575444772,-500.0,0.00041094,14]
[354561728,1740575444782,-1490.27,0.00041094,14]
[354561729,1740575444791,-214.38343617,0.00041094,14]
[354561730,1740575444800,-500.0,0.00041094,14]
[354561731,1740575444810,-500.0,0.00041094,14]
[354561732,1740575444819,-503.4992032,0.00041094,14]
[354561733,1740575444830,-506.54646298,0.00041094,14]
[354561734,1740575444839,-3529.52,0.00041094,14]
[354561735,1740575444850,-500.0,0.00041094,14]
[354561736,1740575444859,-500.0,0.00041094,14]
[354561737,1740575444869,-515.62,0.00041094,14]
[354561738,1740575444879,-500.0,0.00041094,14]
[354561739,1740575444888,-500.0,0.00041094,14]
[354561740,1740575444898,-500.0,0.00041094,14]
[354561741,1740575444907,-500.0,0.00041094,14]
[354561742,1740575444917,-2221.17,0.00041094,14]
[354561743,1740575444927,-500.0,0.00041094,14]
[354561744,1740575444937,-8947.11,0.00041094,14]
[354561745,1740575444949,-2016.18,0.00041094,14]
[354561746,1740575444960,-500.0,0.00041094,14]
[354561747,1740575444970,-701.76,0.00041094,14]
[354561748,1740575444979,-500.0,0.00041094,14]
[354561749,1740575444991,-900.0,0.00041094,120]
[354561750,1740575445001,-500.0,0.00041094,14]
[354561751,1740575445010,-500.0,0.00041094,14]
[354561752,1740575445021,-500.0,0.00041094,14]
[354561753,1740575445031,-500.0,0.00041094,14]
[354561754,1740575445040,-3669.77,0.00041094,14]
[354561755,1740575445049,-500.0,0.00041094,14]
[354561756,1740575445058,-500.0,0.00041094,14]
[354561757,1740575445068,-1329.17,0.00041094,14]
[354561758,1740575445078,-500.0,0.00041094,14]
[354561759,1740575445087,-5453.89,0.00041094,14]
[354561760,1740575445096,-2984.46,0.00041094,14]
[354561761,1740575445106,-536.69520544,0.00041094,14]
[354561762,1740575445115,-709.12,0.00041094,14]
[354561763,1740575445126,-3808.99,0.00041094,14]
[354561764,1740575445136,-1288.01,0.00041094,14]
[354561765,1740575445145,-500.0,0.00041094,14]
[354561766,1740575445154,-500.0,0.00041094,14]
[354561767,1740575445163,-1735.75,0.00041094,14]
[354561768,1740575445173,-500.0,0.00041094,7]
[354561769,1740575445183,-500.0,0.00041094,14]
[354561770,1740575445192,-500.0,0.00041094,14]
[354561771,1740575445202,-929.59,0.00041094,14]
[354561772,1740575445212,-1946.43,0.00041094,14]
[354561773,1740575445221,-500.0,0.00041094,14]
[354561775,1740575445230,-1866.03,0.00041094,14]
[354561777,1740575445240,-934.7,0.00041094,14]
[354561779,1740575445249,-709.76,0.00041094,14]
[354561781,1740575445258,-3708.47,0.00041094,14]
[354561783,1740575445268,-1312.39,0.00041094,14]
[354561785,1740575445279,-1704.08,0.00041094,14]
[354561787,1740575445288,-713.87,0.00041094,14]
[354561789,1740575445297,-503.34104007,0.00041094,14]
[354561791,1740575445306,-1401.72,0.00041094,14]
[354561793,1740575445315,-4142.94,0.00041094,14]
[354561795,1740575445325,-2401.25,0.00041094,14]
[354561797,1740575445334,-500.0,0.00041094,14]
[354561799,1740575445343,-778.73,0.00041094,14]
[354561801,1740575445353,-1801.16,0.00041094,14]
[354561803,1740575445363,-904.0,0.00041094,14]
[354561806,1740575445373,-500.0,0.00041094,14]
[354561808,1740575445382,-889.7,0.00041094,14]
[354561809,1740575445391,-2611.23,0.00041094,14]
[354561812,1740575445402,-500.0,0.00041094,14]
[354561814,1740575445411,-500.0,0.00041094,14]
[354561816,1740575445420,-621.4,0.00041094,14]
[354561818,1740575445430,-4835.15,0.00041094,14]
[354561820,1740575445439,-500.0,0.00041094,14]
[354561822,1740575445449,-500.0,0.00041094,14]
[354561824,1740575445458,-500.0,0.00041094,14]
[354561826,1740575445467,-500.0,0.00041094,14]
[354561828,1740575445476,-525.71296828,0.00041094,14]
[354561830,1740575445486,-3095.21,0.00041094,14]
[354561832,1740575445495,-563.4,0.00041094,14]
[354561834,1740575445504,-2201.26,0.00041094,14]
[354561836,1740575445513,-500.0,0.00041094,14]
[354561838,1740575445523,-500.0,0.00041094,14]
[354561840,1740575445532,-500.0,0.00041094,14]
[354561842,1740575445542,-3437.26,0.00041094,14]
[354561844,1740575445551,-500.0,0.00041094,14]
[354561846,1740575445560,-500.0,0.00041094,14]
[354561848,1740575445570,-2638.84,0.00041094,14]
[354561850,1740575445579,-282.5184322,0.00041094,14]
[354561852,1740575445588,-500.0,0.00041094,14]
[354561854,1740575445597,-500.0,0.00041094,14]
[354561856,1740575445606,-2540.82,0.00041094,14]
[354561858,1740575445615,-2112.29,0.00041094,14]
[354561860,1740575445625,-601.4,0.00041094,14]
[354561862,1740575445634,-1138.75,0.00041094,14]
[354561864,1740575445644,-1199.69,0.00041094,14]
[354561866,1740575445653,-1101.82,0.00041094,14]
[354561868,1740575445663,-586.68,0.00041094,14]
[354561870,1740575445673,-1658.49,0.00041094,14]
[354561872,1740575445682,-1547.98,0.00041094,14]
[354561874,1740575445691,-2977.93,0.00041094,14]
[354561876,1740575445701,-500.0,0.00041094,14]
[354561878,1740575445710,-500.0,0.00041094,14]
[354561880,1740575445719,-500.0,0.00041094,14]
[354561882,1740575445729,-500.0,0.00041094,14]
[354561884,1740575445740,-500.0,0.00041094,14]
[354561886,1740575445750,-221.28890315,0.00041094,14]
[354561889,1740575445759,-500.0,0.00041094,14]
[354561891,1740575445768,-1676.92,0.00041094,14]
[354561893,1740575445777,-500.0,0.00041094,14]
[354561895,1740575445787,-2217.0,0.00041094,14]
[354561897,1740575445795,-3347.21,0.00041094,14]
[354561899,1740575445804,-500.0,0.00041094,14]
[354561901,1740575445813,-512.57742497,0.00041094,14]
[354561903,1740575445824,-660.56,0.00041094,14]
[354561905,1740575445834,-2928.67,0.00041094,14]
[354561907,1740575445843,-951.82,0.00041094,14]
[354561909,1740575445853,-500.0,0.00041094,14]
[354561911,1740575445862,-500.0,0.00041094,14]
[354561913,1740575445872,-3518.54,0.00041094,14]
[354561916,1740575445882,-737.89,0.00041094,14]
[354561919,1740575445891,-501.98829718,0.00041094,14]
[354561922,1740575445900,-1429.29,0.00041094,14]
[354561925,1740575445909,-1666.86,0.00041094,14]
[354561927,1740575445919,-1703.49,0.00041094,14]
[354561929,1740575445929,-503.98032584,0.00041094,14]
[354561931,1740575445939,-500.0,0.00041094,14]
[354561933,1740575445953,-2111.44,0.00041094,14]
[354561935,1740575445963,-501.63373819,0.00041094,14]
[354561937,1740575445972,-500.0,0.00041094,14]
[354561940,1740575445983,-5163.43,0.00041094,14]
[354561943,1740575445992,-893.7,0.00041094,14]
[354561946,1740575446001,-960.89,0.00041094,14]
[354561949,1740575446010,-1131.82,0.00041094,14]
[354561952,1740575446020,-500.0,0.00041094,14]
[354561954,1740575446031,-3523.41,0.00041094,14]
[354561957,1740575446041,-500.0,0.00041094,14]
[354561967,1740575446118,-2093.77,0.00041094,14]
[354561969,1740575446128,-1951.44,0.00041094,14]
[354561970,1740575446137,-642.94574954,0.00041094,14]
[354561973,1740575446147,-3458.43,0.00041094,14]
[354561974,1740575446156,-520.28569782,0.00041094,14]
[354561976,1740575446166,-500.0,0.00041094,14]
[354561978,1740575446175,-1431.67,0.00041094,14]
[354561980,1740575446184,-2666.33,0.00041094,14]
[354561981,1740575446194,-500.0,0.00041094,14]
[354561982,1740575446203,-500.0,0.00041094,14]
[354561983,1740575446211,-500.0,0.00041095,2]
[354561984,1740575446220,-500.0,0.00041095,14]
[354561985,1740575446229,-500.0,0.00041095,14]
[354561986,1740575446238,-500.0,0.00041095,14]
[354561987,1740575446247,-500.0,0.00041095,14]
[354561988,1740575446256,-500.0,0.00041095,14]
[354561989,1740575446265,-504.38954384,0.00041095,14]
[354561990,1740575446275,-355.43934401,0.00041095,14]
[354561992,1740575446284,-502.18001217,0.00041095,14]
[354561994,1740575446293,-506.12239944,0.00041095,14]
[354561996,1740575446302,-500.0,0.00041095,14]
[354561998,1740575446312,-500.0,0.00041095,3]
[354561999,1740575446321,-258.65132656,0.00041095,14]
[354562002,1740575446330,-500.0,0.00041095,14]
[354562004,1740575446340,-500.0,0.00041095,14]
[354562005,1740575446349,-785.71,0.00041095,14]
[354562007,1740575446359,-500.0,0.00041095,14]
[354562009,1740575446368,-1036.76,0.00041095,14]
[354562011,1740575446378,-702.9,0.00041095,14]
[354562013,1740575446388,-1248.91,0.00041095,14]
[354562015,1740575446397,-500.0,0.00041095,14]
[354562017,1740575446407,-500.0,0.00041095,14]
[354562019,1740575446416,-504.01250945,0.00041095,14]
[354562021,1740575446425,-1531.15,0.00041095,14]
[354562023,1740575446434,-913.79,0.00041095,14]
[354562025,1740575446444,-1347.25,0.00041095,14]
[354562027,1740575446453,-729.69,0.00041095,14]
[354562029,1740575446463,-602.42,0.00041095,14]
[354562031,1740575446472,-500.0,0.00041095,14]
[354562033,1740575446481,-500.0,0.00041095,14]
[354562035,1740575446491,-500.0,0.00041095,14]
[354562037,1740575446500,-1314.54,0.00041095,14]
[354562040,1740575446509,-627.26,0.00041095,14]
[354562042,1740575446518,-1381.62,0.00041095,14]
[354562044,1740575446527,-500.0,0.00041095,14]
[354562046,1740575446538,-516.15228949,0.00041095,14]
[354562048,1740575446547,-500.0,0.00041095,14]
[354562050,1740575446556,-499.39519986,0.00041095,14]
[354562052,1740575446565,-355.74500216,0.00041095,14]
[354562054,1740575446575,-1261.1,0.00041095,14]
[354562056,1740575446584,-500.0,0.00041095,14]
[354562058,1740575446593,-500.0,0.00041095,14]
[354562060,1740575446602,-531.86,0.00041095,14]
[354562062,1740575446611,-809.32,0.00041095,14]
[354562064,1740575446621,-500.0,0.00041095,14]
[354562066,1740575446630,-734.42,0.00041095,14]
[354562068,1740575446639,-500.0,0.00041095,14]
[354562071,1740575446649,-553.81,0.00041095,14]
[354562073,1740575446658,-500.0,0.00041095,14]
[354562074,1740575446667,-500.0,0.00041095,14]
[354562076,1740575446676,-500.0,0.00041095,14]
[354562078,1740575446686,-500.0,0.00041095,14]
[354562080,1740575446695,-500.0,0.00041095,14]
[354562082,1740575446704,-1357.63,0.00041095,14]
[354562084,1740575446713,-500.0,0.00041095,14]
[354562086,1740575446723,-1320.3,0.00041095,14]
[354562088,1740575446732,-550.13,0.00041095,14]
[354562090,1740575446742,-764.26,0.00041095,14]
[354562092,1740575446751,-500.0,0.00041095,14]
[354562094,1740575446760,-903.73,0.00041095,14]
[354562096,1740575446770,-707.07,0.00041095,14]
[354562098,1740575446779,-500.0,0.00041095,14]
[354562100,1740575446788,-863.36,0.00041095,14]